bitfinex-derivatives/quotes_ETHF0:USTF0_20250810
["timestamp","ask_amount","ask_price","bid_price","bid_amount"]
[1754793261283,0.5,4265.2,4265.1,1.9064]
[1754793262377,0.5,4265.2,4265.1,1.1492]
[1754793262582,3.3849,4265.2,4265.1,1.1492]
[1754793262883,4.1798,4265.2,4265.1,1.1492]
[1754793263578,0.5,4265.2,4265.1,1.9064]
[1754793263979,4.1798,4265.2,4265.1,0.5]
[1754793264581,4.1798,4265.2,4263.5,1.17245]
[1754793264582,3.6798,4264.4,4264.3,3.2078]
[1754793265082,6.78581963,4264.4,4264.3,3.2078]
[1754793265582,0.46893,4264.0,4263.7,3.2078]
[1754793265778,3.6798,4263.8,4263.7,3.2078]
[1754793266175,6.6647186,4263.8,4263.7,3.2078]
[1754793266581,6.6647186,4263.8,4263.7,4.8471]
[1754793267079,2.9849186,4263.8,4263.7,5.6043]
[1754793267682,1.3682,4264.2,4263.9,2.3965]
[1754793267884,3.6798,4264.0,4263.7,3.2078]
[1754793268085,2.9846644,4264.1,4263.8,1.6393]
[1754793268384,2.9846644,4263.9,4263.8,0.7572]
[1754793268682,2.9846644,4264.6,4263.8,0.46895]
[1754793268683,2.1631,4264.6,4263.8,0.46895]
[1754793268984,3.05451625,4264.3,4264.2,1.6393]
[1754793269285,3.05451625,4264.6,4264.3,0.46889]
[1754793269486,3.6798,4264.5,4264.4,3.2078]
[1754793269875,3.06923068,4264.5,4264.4,5.6043]
[1754793270285,0.7949,4265.1,4264.5,2.10817]
[1754793270584,3.06923068,4265.1,4264.5,0.46887]
[1754793270786,3.06923068,4265.1,4264.7,1.6393]
[1754793270787,2.1631,4264.8,4264.7,1.6393]
[1754793270977,3.06923068,4265.1,4264.8,0.46884]
[1754793271182,2.1631,4265.0,4264.9,4.8471]
[1754793271575,3.11539748,4265.0,4264.9,5.6043]
[1754793271780,0.5,4265.2,4265.0,0.46882]
[1754793271984,0.5,4265.2,4265.0,2.86532]
[1754793272184,0.5,4265.2,4265.1,2.3965]
[1754793273980,3.6798,4265.1,4264.9,3.2078]
[1754793274178,3.6798,4265.0,4264.9,3.2078]
[1754793274987,3.6798,4265.0,4264.9,4.8471]
[1754793275188,3.6298,4265.0,4264.9,4.8471]
[1754793275384,3.6298,4265.0,4264.9,3.2078]
[1754793275886,2.1185,4264.5,4264.4,3.2078]
[1754793276388,5.11760135,4264.5,4264.4,3.2078]
[1754793277184,2.99910135,4264.5,4264.4,7.36988]
[1754793277391,0.5,4265.2,4264.6,0.46885]
[1754793277592,2.1185,4265.0,4264.9,1.5842]
[1754793278391,2.1185,4265.0,4264.9,3.36503]
[1754793278594,0.5,4265.2,4265.0,3.6932]
[1754793278789,0.5,4265.2,4264.9,0.46883]
[1754793278790,0.5,4265.2,4265.1,3.6932]
[1754793280190,4.1808,4265.2,4265.1,1.5842]
[1754793280587,1.2541,4265.2,4265.1,3.6932]
[1754793280796,0.5,4265.2,4265.1,3.6932]
[1754793281994,0.5,4265.2,4265.1,2.8962]
[1754793282199,1.2541,4265.2,4265.1,3.6932]
[1754793282503,0.5,4265.2,4265.1,3.6932]
[1754793283997,0.5,4265.2,4265.1,9.6932]
[1754793284899,0.7541,4266.1,4266.0,2.92331]
[1754793285097,2.1185,4266.1,4266.0,2.92331]
[1754793285600,0.60031205,4266.2,4266.1,3.2516]
[1754793285901,3.6808,4266.2,4266.1,1.5842]
[1754793286099,4.28111205,4266.2,4266.1,1.5842]
[1754793286296,2.71881205,4266.2,4266.1,3.2516]
[1754793286501,2.1185,4266.7,4266.1,4.0048]
[1754793286704,0.60209374,4267.0,4266.8,0.46862]
[1754793286998,3.2078,4267.1,4267.0,0.4686]
[1754793287197,3.2078,4267.1,4267.0,3.7202]
[1754793287392,0.60209374,4267.4,4267.0,3.7202]
[1754793287597,2.1185,4267.1,4267.0,2.9232]
[1754793288301,1.5623,4267.4,4267.0,2.9232]
[1754793288498,1.07062374,4267.7,4267.1,1.5842]
[1754793288705,3.6808,4267.2,4266.5,0.797]
[1754793289002,4.66155311,4267.1,4266.9,0.46861]
[1754793289199,2.66155311,4267.1,4266.2,3.2078]
[1754793289399,0.46866,4266.5,4266.2,0.4642]
[1754793289603,2.1185,4266.2,4266.0,0.4687]
[1754793289905,2.1185,4266.2,4265.9,0.46871]
[1754793290093,3.67648,4266.3,4265.3,1.312]
[1754793290296,1.3644,4266.0,4265.1,30.5418]
[1754793290496,0.7541,4265.9,4265.7,0.46874]
[1754793290705,1.3644,4265.9,4265.8,2.8962]
[1754793291098,2.3952,4265.9,4265.8,2.8962]
[1754793291298,3.1493,4265.9,4265.8,2.8962]
[1754793291698,0.7541,4265.9,4265.8,2.8962]
[1754793292100,0.7541,4266.2,4265.6,0.797]
[1754793292300,3.2078,4266.3,4266.1,2.8499]
[1754793292508,3.2078,4266.3,4266.2,3.6932]
[1754793292708,0.59664943,4266.6,4265.7,0.797]
[1754793292910,1.0308,4266.7,4266.5,0.46864]
[1754793293109,3.1493,4266.6,4266.5,0.46864]
[1754793293310,3.2078,4266.9,4266.4,0.46866]
[1754793293500,3.1493,4266.5,4266.4,3.36486]
[1754793293906,2.1185,4266.5,4266.1,3.36489]
[1754793294206,3.1493,4266.3,4266.1,0.46869]
[1754793294406,3.1493,4266.2,4266.1,0.46869]
[1754793295100,1.3644,4266.1,4265.9,2.05291]
[1754793295304,1.7849,4266.0,4265.9,2.05291]
[1754793295504,3.1493,4266.0,4265.9,2.05291]
[1754793295705,3.1493,4266.0,4265.9,3.36491]
[1754793296006,3.2078,4266.4,4266.2,0.46868]
[1754793296308,0.7541,4266.3,4266.2,0.46868]
[1754793296704,0.7541,4266.3,4266.2,4.16188]
[1754793296911,1.7849,4266.3,4266.2,2.8962]
[1754793297114,0.7541,4266.3,4266.2,2.8962]
[1754793297311,0.7541,4266.3,4266.2,3.6932]
[1754793297812,3.2078,4266.4,4266.2,2.8962]
[1754793298011,3.2078,4266.4,4266.3,3.6932]
[1754793298514,0.7541,4266.6,4266.5,3.6932]
[1754793298812,0.7541,4266.9,4266.8,1.26561]
[1754793299008,3.2078,4267.0,4266.8,1.26561]
[1754793299207,3.2078,4267.0,4266.9,0.797]
[1754793299420,3.9619,4267.0,4266.9,3.6932]
[1754793300116,3.2078,4267.0,4266.9,3.6932]
[1754793301105,0.5,4267.5,4267.0,3.6932]
[1754793301310,0.5,4267.5,4267.4,4.16175]
[1754793301910,0.5,4267.5,4267.4,4.66175]
[1754793302310,3.2078,4268.2,4267.7,3.6932]
[1754793302509,3.2078,4268.2,4267.9,0.4685]
[1754793302715,3.1493,4268.0,4267.9,2.0527]
[1754793302918,3.1493,4268.0,4267.9,0.4685]
[1754793303420,2.1185,4268.1,4267.6,0.46852]
[1754793303619,3.2078,4267.7,4267.6,3.36472]
[1754793303816,3.2078,4267.7,4267.6,4.16172]
[1754793304328,3.2078,4268.3,4267.9,0.46849]
[1754793304518,3.2078,4268.3,4268.0,2.8962]
[1754793304720,3.1493,4268.0,4267.2,0.797]
[1754793304915,2.3952,4267.6,4266.9,2.8962]
[1754793305121,3.2078,4267.8,4267.1,2.8738]
[1754793305315,1.17098,4268.9,4266.4,0.46865]
[1754793305316,1.7985,4267.1,4266.4,0.46865]
[1754793305616,3.1028,4266.9,4266.2,64.88952]
[1754793305822,3.1028,4266.9,4266.8,0.46862]
[1754793306122,3.04537907,4267.2,4267.1,0.46859]
[1754793306324,3.2078,4267.3,4267.1,3.34239]
[1754793306624,3.2078,4267.3,4266.2,62.01572]
[1754793306625,0.7688,4267.8,4267.7,2.8738]
[1754793307415,3.2078,4267.9,4267.6,0.46853]
[1754793307624,0.46838,4269.0,4267.6,0.46853]
[1754793307625,3.6277,4269.0,4268.8,1.7436]
[1754793307823,3.6277,4269.0,4268.5,28.6486]
[1754793308020,3.05641429,4268.9,4268.5,27.05]
[1754793308218,0.7688,4268.7,4268.1,0.5]
[1754793308422,3.2078,4268.6,4268.1,0.5]
[1754793308619,0.46847,4268.2,4267.4,0.46855]
[1754793308825,3.6277,4268.0,4267.3,3.2078]
[1754793309028,2.8589,4267.9,4267.3,3.67636]
[1754793309229,3.6277,4267.8,4267.3,3.67636]
[1754793309427,1.5546,4267.7,4267.3,3.67636]
[1754793309627,0.7688,4267.5,4267.3,3.67636]
[1754793309826,0.2688,4267.0,4266.2,1.74388]
[1754793310031,2.8589,4266.9,4266.2,1.74388]
[1754793310231,2.9867511,4266.9,4266.2,1.74388]
[1754793310625,2.8589,4266.8,4266.1,3.2078]
[1754793310825,2.9867511,4266.9,4266.1,3.2078]
[1754793311022,1.5546,4266.6,4266.1,3.2078]
[1754793311227,1.5546,4266.5,4266.3,0.7923]
[1754793311532,1.5546,4266.5,4266.4,2.8738]
[1754793312028,3.6277,4266.5,4266.4,1.2752]
[1754793312224,2.3234,4266.5,4266.4,2.8738]
[1754793312430,2.3234,4266.5,4266.4,3.6661]
[1754793314131,0.7688,4267.2,4266.5,0.46865]
[1754793314329,1.3043,4267.0,4266.4,1.74386]
[1754793314525,0.7688,4266.7,4266.4,1.2752]
[1754793314723,3.03581224,4267.1,4266.3,29.81257]
[1754793314724,3.6277,4266.6,4266.5,0.46865]
[1754793314920,2.3234,4266.6,4266.5,3.34245]
[1754793315327,2.3234,4266.6,4266.5,4.13475]
[1754793315526,2.3234,4266.9,4266.8,1.74382]
[1754793315724,2.3234,4266.9,4266.8,4.13472]
[1754793316932,3.6277,4266.9,4266.8,1.2752]
[1754793317235,0.46854,4267.6,4266.9,0.46861]
[1754793317426,0.46856,4267.3,4266.6,4.483]
[1754793317632,2.8589,4267.2,4266.7,0.46863]
[1754793317833,3.1060529,4267.4,4266.7,0.46863]
[1754793318026,3.08597865,4267.1,4266.8,1.2752]
[1754793318227,3.6277,4266.9,4266.8,1.2752]
[1754793318427,3.6277,4266.9,4266.4,2.3909]
[1754793318428,1.5546,4266.7,4266.5,1.2752]
[1754793318733,3.6277,4266.6,4266.5,1.2752]
[1754793319231,0.00443622,4266.9,4266.7,3.6661]
[1754793319428,2.3234,4266.8,4266.7,2.3909]
[1754793319633,5.39855303,4266.8,4266.7,2.3909]
[1754793320027,6.70285303,4266.8,4266.7,3.6661]
[1754793321130,5.39855303,4266.8,4266.7,3.6661]
[1754793322023,7.80685303,4266.8,4266.7,5.0979]
[1754793322225,9.11115303,4266.8,4266.7,5.0979]
[1754793322434,9.11115303,4266.8,4266.7,6.1487]
[1754793322731,9.11115303,4266.8,4266.7,0.8943]
[1754793322933,6.036,4266.7,4266.6,2.707]
[1754793323125,3.9057,4266.7,4266.6,5.3564]
[1754793323333,0.00443622,4266.9,4266.8,4.44782]
[1754793324229,5.27163622,4266.9,4266.8,0.7923]
[1754793324530,5.27163622,4266.9,4266.8,1.3298]
[1754793324728,5.2672,4266.6,4266.5,4.0001]
[1754793325132,8.27275634,4266.6,4266.5,4.5376]
[1754793327238,8.27275634,4266.6,4266.5,7.187]
[1754793327433,4.7524,4266.6,4266.5,7.187]
[1754793327636,3.1978,4266.6,4266.5,7.187]
[1754793328431,5.2672,4266.6,4266.5,4.0001]
[1754793328739,5.2672,4265.7,4265.6,28.01105]
[1754793328937,5.2672,4265.7,4265.6,27.5423]
[1754793329139,8.36230033,4265.7,4265.6,27.5423]
[1754793329338,8.86020033,4265.7,4265.6,27.5423]
[1754793329528,8.36230033,4265.7,4265.6,27.5423]
[1754793329732,8.36230033,4265.7,4265.6,29.1409]
[1754793330133,0.5,4266.5,4266.4,0.5375]
[1754793330332,5.7672,4266.5,4266.4,1.3298]
[1754793330535,3.3568,4266.4,4266.1,0.7923]
[1754793330738,5.2672,4265.7,4265.6,28.0498]
[1754793331041,8.25689398,4265.7,4265.6,0.7923]
[1754793331443,8.25689398,4265.7,4265.6,1.3298]
[1754793331946,5.84859398,4265.7,4265.6,0.7923]
[1754793332244,5.84859398,4265.7,4265.6,2.3909]
[1754793334144,6.34859398,4265.7,4265.6,27.4783]
[1754793334446,6.34859398,4265.7,4242.0,9.93386907]
[1754793334447,1.5546,4265.6,4264.8,0.7923]
[1754793334637,5.2672,4264.8,4264.7,1.79865]
[1754793334945,6.77515018,4265.5,4265.4,0.5375]
[1754793335136,3.7126,4265.5,4265.4,2.3806]
[1754793335336,3.7126,4265.5,4265.4,1.3298]
[1754793335539,5.2594,4265.5,4265.4,1.3298]
[1754793335741,4.7446,4265.5,4265.4,4.0455]
[1754793335932,3.1661,4265.5,4265.4,4.0487]
[1754793336140,5.2101,4265.5,4265.4,4.0455]
[1754793336338,0.5,4265.7,4265.6,3.99]
[1754793337947,5.9955,4266.8,4266.7,1.2711]
[1754793338248,8.22313008,4266.8,4266.7,3.9868]
[1754793338441,3.03473008,4266.8,4266.6,0.46864]
[1754793338646,2.1086,4266.8,4266.7,1.6061]
[1754793338847,5.1884,4266.8,4266.7,1.6061]
[1754793339045,2.3804,4266.5,4266.4,0.46866]
[1754793339246,5.9955,4266.5,4266.4,0.46866]
[1754793339442,5.1884,4266.3,4266.2,26.602]
[1754793339745,2.3804,4265.7,4265.6,0.5]
[1754793339942,5.9955,4265.7,4265.6,0.5]
[1754793340245,6.7141557,4265.7,4265.6,4.4868]
[1754793340437,5.6884,4265.7,4265.6,4.4868]
[1754793340641,6.4955,4265.7,4265.6,0.5]
[1754793341137,9.5652557,4265.7,4265.6,0.5]
[1754793341344,9.5652557,4265.7,4265.6,1.7711]
[1754793341540,8.7581557,4265.7,4265.6,4.4868]
[1754793341844,0.5,4265.7,4265.6,4.4868]
[1754793342848,1.2612,4266.8,4265.7,2.3807]
[1754793343040,0.81153622,4266.9,4266.6,1.6061]
[1754793343041,5.1884,4266.7,4266.6,1.6061]
[1754793343245,2.3804,4266.4,4266.3,30.5388]
[1754793343445,5.9955,4266.4,4266.3,30.5378]
[1754793343948,5.1884,4266.4,4266.3,31.00647]
[1754793344150,3.6416,4266.4,4266.3,29.91337]
[1754793344347,2.1086,4266.4,4266.3,31.00647]
[1754793344550,1.2612,4266.4,4266.3,31.00647]
[1754793344749,5.1884,4266.8,4266.7,3.9868]
[1754793345052,8.29440064,4266.8,4266.7,3.9868]
[1754793346949,2.1086,4266.8,4266.7,3.9868]
[1754793347155,1.2612,4266.8,4266.7,3.9868]
[1754793347747,2.1086,4266.8,4266.7,3.9868]
[1754793348143,2.3804,4266.8,4266.3,30.5169]
[1754793348354,1.2612,4266.7,4266.4,0.46866]
[1754793348549,2.1086,4266.7,4266.6,3.9868]
[1754793348749,1.2612,4266.7,4266.6,3.9868]
[1754793349259,0.00443622,4266.9,4266.8,3.9868]
[1754793349553,0.00443622,4266.9,4266.8,33.6686]
[1754793349749,3.2078,4268.4,4267.0,3.5522]
[1754793349949,5.9955,4268.3,4268.2,0.513]
[1754793350151,5.39073626,4268.3,4268.0,26.458]
[1754793350356,5.9955,4268.1,4268.0,26.458]
[1754793352162,5.9955,4268.1,4268.0,26.92649]
[1754793352757,5.9955,4268.1,4268.0,26.458]
[1754793352954,2.39917787,4270.0,4268.0,26.458]
[1754793352955,3.2078,4268.9,4268.1,2.3807]
[1754793353159,8.3962,4268.9,4268.8,3.9868]
[1754793353356,3.2078,4268.9,4268.8,28.7927]
[1754793353861,4.469,4268.9,4268.8,28.7927]
[1754793354459,6.0158,4268.9,4268.1,3.2078]
[1754793354653,3.6151,4268.8,4268.6,0.46842]
[1754793354857,3.6151,4268.8,4268.7,26.392]
[1754793355153,3.2078,4268.9,4268.5,0.46843]
[1754793355357,0.8071,4268.7,4268.6,27.1461]
[1754793355555,3.05251326,4268.8,4268.7,2.3807]
[1754793355758,1.5468,4268.8,4268.7,1.6226]
[1754793356161,3.6151,4268.8,4268.7,1.6226]
[1754793356464,3.6151,4268.8,4268.7,0.7581]
[1754793356661,3.6151,4268.8,4268.6,26.388]
[1754793356865,1.2612,4268.5,4268.3,26.359]
[1754793357060,3.6151,4268.4,4268.3,26.359]
[1754793357260,1.2612,4268.6,4268.5,2.3807]
[1754793357467,4.469,4268.9,4268.6,0.46842]
[1754793357654,4.469,4268.9,4268.8,2.3807]
[1754793357861,1.2612,4269.2,4268.9,2.84909]
[1754793358061,0.8071,4269.4,4268.9,0.46839]
[1754793358364,3.07902201,4269.1,4269.0,26.341]
[1754793358566,3.07902201,4269.2,4269.0,26.341]
[1754793358761,3.07902201,4269.4,4269.0,26.341]
[1754793358955,3.07902201,4269.1,4269.0,27.56748]
[1754793359157,3.05020644,4269.2,4269.0,29.19008]
[1754793359364,1.2612,4269.2,4269.1,2.3807]
[1754793359564,0.8071,4269.2,4268.6,3.9659]
[1754793359760,3.6151,4269.0,4268.7,26.78741]
[1754793359959,3.67613,4269.5,4268.6,3.2078]
[1754793359960,3.6151,4268.8,4268.6,3.2078]
[1754793360160,3.6151,4268.8,4268.7,23.575]
[1754793360362,3.6151,4268.6,4268.5,26.314]
[1754793360559,3.06136086,4268.8,4268.1,26.308]
[1754793360768,3.6151,4267.7,4267.6,3.2078]
[1754793361160,6.8229,4268.4,4267.8,0.46851]
[1754793361557,3.05020638,4268.1,4268.0,0.46849]
[1754793361862,3.6151,4269.1,4268.5,0.46843]
[1754793362062,1.2612,4269.1,4268.5,0.46843]
[1754793362366,0.8071,4268.9,4268.8,0.7581]
[1754793362765,2.98665835,4268.9,4268.8,3.657]
[1754793363066,4.7546,4269.2,4268.8,4.1254]
[1754793363264,3.01343261,4269.0,4268.6,0.46842]
[1754793363457,3.6151,4269.0,4268.6,26.271]
[1754793363658,3.67616,4269.2,4268.6,26.271]
[1754793363854,2.0683,4268.8,4268.6,27.0291]
[1754793364063,1.5468,4268.7,4268.6,29.928]
[1754793364260,5.83078702,4268.7,4268.6,28.3054]
[1754793364460,6.63788702,4268.7,4268.6,27.0291]
[1754793364860,6.63788702,4268.7,4268.6,26.271]
[1754793365057,3.02278702,4268.7,4268.6,29.928]
[1754793365459,6.60488702,4268.7,4268.6,26.271]
[1754793365769,6.60488702,4268.7,4268.6,26.247]
[1754793366464,6.60488702,4268.7,4268.6,29.8052]
[1754793366665,5.83918702,4268.7,4268.6,29.8052]
[1754793366866,6.60488702,4268.7,4268.6,29.8052]
[1754793367169,5.83918702,4268.7,4268.6,29.8052]
[1754793367370,6.60488702,4268.7,4268.6,29.8052]
[1754793367566,3.02278702,4268.7,4268.2,0.7765]
[1754793367766,0.7657,4268.5,4268.1,3.2078]
[1754793367977,0.46842,4268.6,4268.2,26.211]
[1754793368272,3.5821,4268.3,4268.2,26.211]
[1754793368570,6.68325696,4268.3,4268.2,26.211]
[1754793369670,6.68325696,4268.3,4268.2,30.23767]
[1754793370068,6.68325696,4268.3,4268.2,29.7692]
[1754793371375,6.68325696,4268.3,4268.2,26.211]
[1754793371768,3.5821,4268.2,4267.9,26.188]
[1754793372069,3.5821,4268.0,4267.6,1.24503]
[1754793372372,6.61775158,4267.9,4267.5,0.7765]
[1754793372561,0.7657,4267.8,4267.6,0.46853]
[1754793372766,3.5821,4267.7,4267.6,2.0248]
[1754793372963,6.61775158,4267.7,4267.6,2.0248]
[1754793373163,3.03565158,4267.7,4267.6,2.0248]
[1754793373375,3.03565158,4267.7,4267.6,3.5582]
[1754793373669,2.8164,4267.8,4267.7,3.5582]
[1754793373867,3.5821,4267.7,4267.5,3.5582]
[1754793374067,3.5821,4267.6,4267.5,2.0248]
[1754793374269,3.5821,4267.6,4267.4,18.349]
[1754793374270,2.9950845,4267.6,4267.4,18.349]
[1754793374568,3.2078,4267.9,4267.3,3.2078]
[1754793374569,6.0268,4267.5,4267.3,3.2078]
[1754793374763,6.0268,4267.5,4267.2,0.46857]
[1754793374764,2.4447,4266.8,4266.5,3.2078]
[1754793374969,3.5821,4266.6,4266.5,3.2078]
[1754793375167,4.05074,4266.6,4266.5,3.2078]
[1754793375466,5.35634971,4266.6,4265.7,3.67654]
[1754793375672,3.5821,4266.4,4265.7,3.67654]
[1754793376077,3.02644971,4266.3,4266.0,0.4687]
[1754793376375,3.5821,4266.2,4265.8,0.46873]
[1754793376578,0.46869,4266.2,4265.7,3.2078]
[1754793376778,1.5642,4265.7,4265.1,2.0248]
[1754793377073,3.47828049,4265.6,4265.0,3.2078]
[1754793377277,3.5821,4265.5,4265.3,0.46878]
[1754793377480,1.5642,4265.5,4265.4,3.5582]
[1754793377674,2.0179,4265.9,4265.4,3.5582]
[1754793377874,1.5642,4265.8,4265.6,3.5582]
[1754793378075,5.82593049,4265.8,4265.7,3.5582]
[1754793378470,6.59163049,4265.8,4265.7,3.5582]
[1754793378872,3.00953049,4265.8,4265.7,0.46874]
[1754793379073,3.00953049,4265.8,4265.7,4.02694]
[1754793379273,3.04730336,4266.1,4265.7,0.96874]
[1754793379467,2.8164,4265.9,4265.8,2.0248]
[1754793379670,3.5821,4265.8,4265.7,0.5]
[1754793379874,3.5821,4265.8,4265.7,4.0582]
[1754793380075,6.62940336,4265.8,4265.7,4.0582]
[1754793380369,6.62940336,4265.8,4265.7,1.2765]
[1754793381077,3.04730336,4265.8,4265.7,4.0582]
[1754793381270,1.5642,4266.1,4265.8,3.5582]
[1754793381475,1.5642,4266.1,4265.7,0.5]
[1754793381476,2.8164,4265.9,4265.7,0.5]
[1754793381677,3.2078,4265.8,4264.8,26.05]
[1754793381878,3.2078,4265.8,4264.5,3.67667]
[1754793381879,0.46881,4265.1,4264.5,3.67667]
[1754793382079,0.7657,4264.9,4264.5,29.71867]
[1754793382282,3.5821,4264.8,4264.5,29.71867]
[1754793382475,3.04227533,4264.8,4264.5,0.46887]
[1754793382786,3.2078,4264.8,4264.2,1.5334]
[1754793382984,4.46,4264.3,4263.8,1.24545]
[1754793383275,0.7657,4264.0,4263.6,26.035]
[1754793383476,3.5821,4263.7,4263.6,26.035]
[1754793383681,3.2078,4263.8,4262.9,1.2483]
[1754793383877,3.5821,4263.4,4262.9,0.46905]
[1754793384077,3.2078,4263.8,4262.8,26.7985]
[1754793384078,3.5821,4263.6,4263.0,0.46904]
[1754793384386,0.7657,4263.2,4263.0,1.24554]
[1754793384685,1.5642,4263.0,4262.8,26.022]
[1754793384880,3.06333353,4263.1,4263.0,3.25074]
[1754793385189,3.06333353,4263.7,4262.9,2.7817]
[1754793385395,4.46,4263.8,4263.1,2.7817]
[1754793385690,3.03075996,4263.7,4263.3,3.2507]
[1754793385886,3.03075996,4263.7,4263.5,4.02718]
[1754793386078,5.84715996,4263.7,4263.6,3.5582]
[1754793386284,3.2078,4263.8,4263.5,0.46898]
[1754793386491,3.5821,4264.5,4264.1,2.49371]
[1754793386684,3.5821,4264.5,4263.1,1.17255]
[1754793386685,2.3299,4264.5,4264.3,0.46889]
[1754793386885,4.46,4264.6,4264.5,0.46887]
[1754793387389,3.05845531,4264.6,4264.5,4.02707]
[1754793387587,3.2078,4265.1,4264.9,0.46882]
[1754793387787,3.2078,4265.1,4265.0,3.5582]
[1754793387982,6.0242,4265.1,4265.0,2.3099]
[1754793388180,3.5821,4265.0,4264.9,0.46882]
[1754793388492,2.0179,4264.9,4264.1,1.2483]
[1754793388792,2.8164,4264.5,4264.4,0.46888]
[1754793388989,3.5821,4264.5,4264.4,0.46888]
[1754793389190,6.66110796,4264.5,4264.4,0.46888]
[1754793390293,3.84470796,4264.5,4264.2,0.4689]
[1754793390494,3.5821,4264.3,4264.2,0.4689]
[1754793390794,3.5821,4264.3,4264.2,1.2454]
[1754793390992,0.46886,4264.6,4263.7,0.46895]
[1754793391193,3.5821,4264.2,4263.6,29.1498]
[1754793391387,3.5821,4264.1,4264.0,0.46892]
[1754793391587,6.61340166,4264.1,4264.0,4.02712]
[1754793391787,3.5821,4264.1,4264.0,4.02712]
[1754793391988,6.0242,4264.6,4264.5,3.5582]
[1754793392283,3.2078,4265.3,4265.2,2.0248]
[1754793392484,3.7078,4265.8,4265.3,3.5582]
[1754793392693,3.06624702,4265.7,4265.4,4.02697]
[1754793392981,3.7078,4265.8,4265.0,25.928]
[1754793392982,3.7078,4265.8,4265.6,0.46875]
[1754793393185,3.7078,4265.8,4265.7,3.5582]
[1754793393396,0.5,4265.8,4265.7,3.5582]
[1754793393793,3.2078,4266.3,4266.2,0.46869]
[1754793393995,3.2078,4266.3,4266.2,4.02689]
[1754793394292,1.5642,4267.6,4267.5,2.0248]
[1754793394587,3.5821,4267.5,4266.9,26.37661]
[1754793394794,2.0179,4267.4,4267.2,0.46857]
[1754793395097,1.5642,4267.3,4267.2,2.49337]
[1754793395395,1.5642,4267.3,4267.2,3.18877]
[1754793396087,1.5642,4267.3,4267.2,2.7202]
[1754793397293,1.5642,4267.3,4267.2,2.0248]
[1754793397294,2.8553,4267.3,4267.2,2.0248]
[1754793397483,0.46853,4267.7,4267.2,2.0248]
[1754793397684,0.46853,4267.7,4267.4,2.1211]
[1754793397685,3.6206,4267.7,4267.4,2.1211]
[1754793397884,1.2911,4267.4,4266.9,0.46861]
[1754793398087,2.99488945,4267.6,4266.9,0.46861]
[1754793398393,1.57,4267.1,4267.0,1.3575]
[1754793398592,1.57,4267.5,4267.1,0.46859]
[1754793398793,1.57,4267.5,4267.3,2.52146]
[1754793398988,2.97650698,4267.4,4267.3,1.23216]
[1754793399190,3.2078,4267.8,4267.3,0.46856]
[1754793399390,1.57,4267.7,4267.5,0.7636]
[1754793399596,4.5680502,4267.7,4267.6,2.1211]
[1754793399896,2.9980502,4267.7,4267.6,2.8165]
[1754793400090,3.2078,4267.8,4267.1,2.1211]
[1754793400288,5.34173125,4267.7,4267.1,2.1211]
[1754793401100,1.57,4268.4,4267.2,3.2078]
[1754793401394,3.03017238,4268.3,4267.4,2.8165]
[1754793401597,3.03017238,4268.3,4267.5,2.1211]
[1754793401793,3.03017238,4268.3,4267.6,1.459]
[1754793402198,2.8611,4268.2,4267.6,1.459]
[1754793402397,3.6206,4268.2,4267.6,1.459]
[1754793402592,3.6206,4268.3,4267.9,0.4685]
[1754793402793,2.8611,4268.2,4268.1,2.1211]
[1754793403098,5.9082758,4268.2,4268.1,2.1211]
[1754793403292,6.6677758,4268.2,4268.1,0.7636]
[1754793403498,1.57,4267.8,4267.7,2.1211]
[1754793403688,3.0471758,4268.2,4267.7,2.8165]
[1754793403895,6.0689,4268.5,4267.9,2.8165]
[1754793404094,3.06031364,4268.3,4267.7,0.46852]
[1754793404296,2.8611,4268.2,4268.1,2.1211]
[1754793404490,2.8611,4268.2,4268.1,2.8165]
[1754793404697,5.91033938,4268.2,4268.1,2.8165]
[1754793405496,5.91033938,4268.2,4267.7,2.52142]
[1754793405497,6.66983938,4268.2,4267.7,2.52142]
[1754793405796,3.6206,4267.9,4267.8,0.7636]
[1754793406803,1.57,4267.6,4267.5,2.58964]
[1754793407203,1.57,4267.6,4267.5,3.28504]
[1754793408900,2.8611,4268.4,4267.7,2.58961]
[1754793409107,2.3295,4268.3,4267.7,2.58961]
[1754793409307,3.04000725,4268.2,4267.7,0.46851]
[1754793409505,3.04000725,4268.2,4267.8,2.1211]
[1754793409708,3.6206,4267.9,4267.8,2.1211]
[1754793410602,3.6206,4267.3,4266.7,3.2078]
[1754793410907,2.98934078,4267.2,4266.8,1.82612]
[1754793411100,1.57,4267.0,4266.9,2.0529]
[1754793411302,3.6206,4267.0,4266.9,1.3575]
[1754793411502,3.00797047,4267.0,4266.7,3.2078]
[1754793411711,3.6206,4266.8,4266.7,3.2078]
[1754793411899,3.6206,4266.8,4266.0,0.6954]
[1754793411900,2.3295,4266.8,4266.5,0.46865]
[1754793412100,2.3295,4266.6,4266.5,0.7636]
[1754793412405,3.05874249,4266.8,4266.2,3.28517]
[1754793412609,3.6206,4266.5,4266.0,0.4687]
[1754793412811,2.8611,4266.5,4266.0,2.5898]
[1754793413009,1.2911,4266.3,4266.1,2.8165]
[1754793413210,1.57,4266.2,4266.1,2.8165]
[1754793415804,0.7595,4266.1,4265.6,3.2078]
[1754793416002,3.6206,4266.1,4265.8,2.8165]
[1754793416202,3.6206,4266.1,4265.6,3.2078]
[1754793416203,5.89819633,4266.0,4265.9,2.8165]
[1754793416507,6.65769633,4266.0,4265.9,0.7636]